fUSD/lending_fUSD_20240201
["ID","MTS","AMOUNT","RATE_DAILY","PERIOD"]
[313109157,1706757032372,-179.12,0.00022791,2]
[313109159,1706757032381,-170.64605483,0.00022797,2]
[313109161,1706757032390,-1985.28430691,0.00022898,2]
[313109162,1706757032401,-210.80757545,0.00022898,2]
[313109163,1706757032410,-176.67995718,0.00022898,6]
[313109164,1706757032421,-176.67995718,0.000229,6]
[313109165,1706757032431,-309.94475982,0.000229,2]
[313109166,1706757032440,-554.84770367,0.000229,2]
[313109167,1706757032450,-309.94475981,0.00022946,2]
[313109168,1706757032460,-309.94475981,0.00022992,2]
[313109169,1706757032470,-156.53184773,0.00022992,2]
[313109170,1706757032483,-2265.23379337,0.00022997,2]
[313109171,1706757032493,-312.56804473,0.00022997,2]
[313109172,1706757032504,-26170.12669562,0.00022997,2]
[313109173,1706757032516,-23736.57730222,0.00022997,2]
[313109174,1706757032529,-7924.14223101,0.00022997,2]
[313109175,1706757032541,-1186.69011417,0.00022997,2]
[313109176,1706757032553,-269.42731393,0.00022997,2]
[313109177,1706757032579,-146536.88037126,0.00022997,2]
[313109178,1706757032591,-111277.0529229,0.00022997,2]
[313109183,1706757038290,-504.06372899,0.00022997,2]
[313109184,1706757038301,-473.3383626,0.00022997,2]
[313109185,1706757038313,-31677.77045552,0.00022997,2]
[313109186,1706757038324,-4723.37346589,0.00022997,2]
[313109187,1706757038565,-61638.61629843,0.00022997,2]
[313109188,1706757038576,-527.07391817,0.00022998,2]
[313109189,1706757038587,-2593.2997175,0.00022999,2]
[313109190,1706757038597,-947.10054635,0.00022999,2]
[313109191,1706757038606,-9452.11662022,0.00022999,2]
[313109192,1706757038616,-32339.03794103,0.00022999,2]
[313109194,1706757038626,-69703.19971151,0.00022999,2]
[313109196,1706757038635,-332109.09089871,0.00023,2]
[313109198,1706757038645,-315808.1491657,0.00023,2]
[313109200,1706757038656,-2000.0,0.00023092,2]
[313109202,1706757038666,-7236.062973,0.0002313,2]
[313109204,1706757038676,-272.46,0.00023207,2]
[313109205,1706757038685,-250.0,0.00023312,2]
[313109208,1706757038695,-179.12,0.00023385,2]
[313109210,1706757038704,-499.99,0.000234,2]
[313109212,1706757038714,-150.0,0.000235,2]
[313109214,1706757038723,-286.44,0.0002364,2]
[313109216,1706757038733,-613.3,0.000238,2]
[313109218,1706757038742,-179.12,0.00023978,2]
[313109220,1706757038752,-13153.0,0.00023999,2]
[313109222,1706757038761,-201.73516107,0.00024,2]
[313109224,1706757038770,-1902.02,0.00024213,2]
[313109226,1706757038779,-167.0,0.00024297,2]
[313109228,1706757038789,-169.5,0.00024297,2]
[313109229,1706757038797,-3168.43,0.00024384,2]
[313109232,1706757038807,-1561.93,0.00024384,2]
[313109233,1706757038816,-205.02,0.00024435,2]
[313109236,1706757038826,-170.6460548,0.00024607,2]
[313109237,1706757038835,-250.0,0.00024658,2]
[313109240,1706757038844,-5125.44,0.00024658,4]
[313109241,1706757038853,-6548.73,0.00024658,2]
[313109243,1706757038863,-156.53184766,0.00024786,2]
[313109246,1706757038873,-2320.50679205,0.00025,2]
[313109248,1706757038882,-167.89104996,0.00025,2]
[313109249,1706757038891,-487.96764447,0.00025,2]
[313109251,1706757038902,-1588.56278984,0.00025,2]
[313109254,1706757038911,-1904.97840411,0.00025,2]
[313109255,1706757038920,-304.42296087,0.00025,2]
[313109257,1706757038929,-936.38551018,0.00025,2]
[313109260,1706757038939,-202.63807571,0.00025,2]
[313109262,1706757038948,-422.40472177,0.00025,2]
[313109263,1706757038956,-208.46122201,0.00025,4]
[313109265,1706757038966,-1262.37055309,0.00025,2]
[313109268,1706757038975,-350.0,0.00025,3]
[313109270,1706757038984,-286.44,0.0002501,2]
[313109271,1706757038993,-1985.28430685,0.00025093,2]
[313109274,1706757039002,-800.0,0.00025192,2]
[313109276,1706757039011,-167.0,0.00025633,2]
[313109278,1706757039021,-164.79,0.00025691,2]
[313109280,1706757039030,-200.0,0.00025847,2]
[313109282,1706757039039,-1902.02,0.00025857,2]
[313109284,1706757039048,-613.3,0.00026064,2]
[313109285,1706757039059,-150.0,0.00026079,2]
[313109288,1706757039068,-2879.44597693,0.000264,2]
[313109289,1706757039077,-170.6460548,0.00026417,2]
[313109292,1706757039087,-156.53184766,0.0002658,2]
[313109293,1706757039096,-167.0,0.0002697,2]
[313109296,1706757039105,-417.44945802,0.00027,2]
[313109297,1706757039114,-400.0,0.00027,3]
[313109300,1706757039124,-397.76,0.00027039,2]
[313109302,1706757039134,-1985.28430685,0.00027287,3]
[313109304,1706757039142,-505.57,0.00027397,2]
[313109306,1706757039153,-2500.0,0.00027397,3]
[313109308,1706757039162,-195.8,0.00027397,2]
[313109310,1706757039171,-250.0,0.000274,2]
[313109312,1706757039181,-1902.02,0.00027501,2]
[313109314,1706757039190,-505.57,0.00027614,2]
[313109316,1706757039202,-505.57,0.0002783,2]
[313109318,1706757039211,-359.57426793,0.00027874,2]
[313109320,1706757039220,-800.0,0.00027991,2]
[313109322,1706757039230,-691.09338038,0.00028,2]
[313109324,1706757039239,-184.08526604,0.00028,2]
[313109326,1706757039248,-209.0,0.00028003,2]
[313109328,1706757039257,-505.57,0.00028046,2]
[313109330,1706757039265,-195.8,0.0002811,2]
[313109332,1706757039275,-170.6460548,0.00028227,2]
[313109334,1706757039283,-505.57,0.00028262,2]
[313109336,1706757039292,-167.0,0.00028307,2]
[313109338,1706757039302,-169.5,0.00028307,2]
[313109340,1706757039311,-613.3,0.00028328,2]
[313109342,1706757039321,-156.53184766,0.00028374,2]
[313109344,1706757039331,-397.76,0.00028391,2]
[313109346,1706757039341,-3076.0,0.000284,2]
[313109348,1706757039350,-6246.0,0.000284,2]
[313109350,1706757039359,-505.57,0.00028479,2]
[313109352,1706757039368,-505.57,0.00028695,2]
[313109354,1706757039377,-195.8,0.00028822,2]
[313109356,1706757039386,-19191.13780264,0.000289,2]
[313109358,1706757039394,-505.57,0.00028911,2]
[313109360,1706757039404,-450.0,0.00029,3]
[313109362,1706757039413,-200.0,0.00029078,2]
[313109364,1706757039422,-505.57,0.00029128,2]
[313109366,1706757039431,-1902.02,0.00029144,2]
[313109368,1706757039440,-583.58524784,0.00029195,2]
[313109370,1706757039449,-505.57,0.00029344,2]
[313109372,1706757039458,-329.18345255,0.0002945,2]
[313109374,1706757039467,-1985.28430685,0.00029482,4]
[313109376,1706757039477,-155.56936349,0.000295,3]
[313109378,1706757039487,-505.57,0.0002956,2]
[313109380,1706757039497,-205.02,0.0002962,2]
[313109382,1706757039508,-397.76,0.00029743,2]
[313109384,1706757039517,-505.57,0.00029777,2]
[313109386,1706757039526,-176.02968704,0.000298,2]
[313109388,1706757039535,-71301.78178387,0.000299,2]
[313109390,1706757039545,-406.14,0.00029973,2]
[313109392,1706757039554,-505.57,0.00029993,2]
[313109394,1706757039563,-161.18177704,0.0003,4]
[313109396,1706757039574,-361.24860726,0.0003,4]
[313109398,1706757039583,-155.0,0.0003,2]
[313109400,1706757039592,-180888.90259667,0.0003,2]
[313109402,1706757039602,-4884.25961146,0.0003,4]
[313109404,1706757039611,-252.85143904,0.0003,4]
[313109406,1706757039622,-9669.73208063,0.0003,2]
[313109408,1706757039631,-359.91988601,0.0003,2]
[313109410,1706757039641,-700.99024461,0.0003,2]
[313109412,1706757039651,-375.57296171,0.0003,2]
[313109414,1706757039662,-589.89356993,0.0003,2]
[313109416,1706757039673,-500.0,0.0003,2]
[313109418,1706757039685,-204.0,0.0003,2]
[313109420,1706757039695,-3680.95591195,0.00030004,2]
[313109422,1706757039704,-913.12412257,0.00030004,2]
[313109424,1706757039714,-300.00890078,0.00030004,2]
[313109426,1706757039723,-170.6460548,0.00030037,2]
[313109428,1706757039733,-153181.59756812,0.000301,2]
[313109430,1706757039742,-34184.1972,0.00030104,2]
[313109432,1706757039751,-151.29,0.00030137,2]
[313109433,1706757039760,-156.53184766,0.00030167,2]
[313109435,1706757039769,-505.57,0.00030209,2]
[313109437,1706757039779,-541.39422159,0.00030425,14]
[313109439,1706757039788,-505.57,0.00030425,2]
[313109442,1706757039798,-209.0,0.00030464,6]
[313109444,1706757039807,-613.3,0.00030592,2]
[313109446,1706757039816,-1000.0,0.00030617,2]
[313109447,1706757039826,-505.57,0.00030642,2]
[313109450,1706757039835,-1902.02,0.00030788,2]
[313109452,1706757039845,-800.0,0.0003079,2]
[313109454,1706757039855,-167.0,0.00030797,2]
[313109455,1706757039864,-151.29,0.00030822,2]
[313109457,1706757039874,-505.57,0.00030858,2]
[313109460,1706757039883,-1595.60096828,0.00031,2]
[313109462,1706757039893,-258.92777953,0.00031,4]
[313109464,1706757039902,-500.0,0.00031,3]
[313109465,1706757039911,-505.57,0.00031074,2]
[313109467,1706757039920,-397.76,0.00031095,2]
[313109470,1706757039930,-1821.3567041,0.0003123,4]
[313109472,1706757039939,-505.57,0.00031291,2]
[313109474,1706757039948,-1108.12,0.00031426,2]
[313109475,1706757039957,-1535.38,0.00031426,2]
[313109477,1706757039967,-500.0,0.000315,2]
[313109480,1706757039976,-16581.84799344,0.000315,3]
[313109482,1706757039985,-151.29,0.00031507,2]
[313109483,1706757039994,-505.57,0.00031507,2]
[313109486,1706757040003,-180.0,0.00031644,2]
[313109488,1706757040012,-190.66,0.00031644,2]
[313109490,1706757040022,-583.58524784,0.00031669,3]
[313109491,1706757040031,-1985.28430685,0.00031676,5]
[313109492,1706757040040,-198.34928315,0.00031797,2]
[313109493,1706757040049,-150.78203027,0.000318,2]
[313109494,1706757040057,-150.80000564,0.000318,2]
[313109495,1706757040067,-257.72,0.000318,7]
[313109496,1706757040075,-155.0,0.000318,2]
[313109497,1706757040085,-176.8,0.000318,2]
[313109498,1706757040094,-230377.817768,0.000318,3]
[313109499,1706757040103,-129885.0,0.00031808,4]
[313109500,1706757040112,-2861.0,0.00031808,4]
[313109501,1706757040121,-304.0,0.00031808,4]
[313109503,1706757040130,-257.72,0.00031937,7]
[313109505,1706757040139,-156.53184766,0.00031961,2]
[313109507,1706757040148,-156.72602043,0.00032,2]
[313109509,1706757040157,-1985.96204306,0.00032017,28]
[313109511,1706757040167,-257.72,0.00032074,7]
[313109513,1706757040176,-150.0,0.00032077,2]
[313109515,1706757040185,-151.29,0.00032192,2]
[313109517,1706757040194,-257.72,0.00032211,7]
[313109519,1706757040202,-150.0,0.00032224,2]
[313109520,1706757040212,-200.0,0.00032309,2]
[313109522,1706757040221,-306.59715643,0.00032348,7]
[313109524,1706757040230,-176.8,0.00032348,2]
[313109525,1706757040239,-250.0,0.00032424,2]
[313109526,1706757040249,-397.76,0.00032447,2]
[313109527,1706757040258,-500.0,0.00032466,2]
[313109528,1706757040267,-1000.0,0.00032466,2]
[313109529,1706757040275,-39346.2581,0.00032466,2]
[313109530,1706757040285,-4685.99232253,0.00032575,4]
[313109531,1706757040294,-200.0,0.00032576,2]
[313109532,1706757040303,-742.99822546,0.00032576,2]
[313109533,1706757040312,-3000.0,0.00032576,2]
[313109534,1706757040321,-250.0,0.00032698,2]
[313109535,1706757040330,-6398.96170152,0.00032773,4]
[313109536,1706757040339,-281066.8788555,0.000328,2]
[313109537,1706757040348,-351.0,0.000328,7]
[313109538,1706757040357,-151.0201,0.00032848,4]
[313109539,1706757040366,-613.3,0.00032856,2]
[313109540,1706757040375,-150.0,0.00032875,2]
[313109541,1706757040383,-150.0,0.00032875,2]
[313109542,1706757040392,-503.93397822,0.00032876,2]
[313109543,1706757040402,-176.75866955,0.00032876,2]
[313109544,1706757040411,-528.90173183,0.00032876,2]
[313109545,1706757040420,-521.95930049,0.00032876,15]
[313109546,1706757040430,-531.35536391,0.00032876,2]
[313109547,1706757040439,-640.41512989,0.00032876,2]
[313109548,1706757040448,-516.55878581,0.00032876,2]
[313109549,1706757040457,-500.0,0.00032876,2]
[313109550,1706757040467,-527.87789072,0.00032876,2]
[313109551,1706757040477,-691.97977343,0.00032876,2]
[313109552,1706757040487,-528.28359069,0.00032876,2]
[313109553,1706757040498,-541.87279483,0.00032876,2]
[313109554,1706757040508,-522.3660217,0.00032876,2]
[313109555,1706757040518,-507.50356999,0.00032876,2]
[313109556,1706757040527,-515.09522024,0.00032876,2]
[313109557,1706757040536,-510.47353384,0.00032876,2]
[313109558,1706757040546,-534.70523559,0.00032876,2]
[313109559,1706757040555,-514.77932297,0.00032876,2]
[313109560,1706757040564,-532.57023037,0.00032876,2]
[313109561,1706757040574,-532.67275158,0.00032876,2]
[313109562,1706757040583,-505.05458496,0.00032876,2]
[313109563,1706757040595,-512.22668518,0.00032876,2]
[313109564,1706757040605,-527.07158319,0.00032876,2]
[313109565,1706757040614,-198.14966906,0.00032876,9]
[313109566,1706757040624,-500.43179539,0.00032876,2]
[313109568,1706757040634,-585.97670425,0.00032876,2]
[313109570,1706757040643,-500.01943425,0.00032876,2]
[313109571,1706757040654,-526.18323914,0.00032876,2]
[313109572,1706757040664,-570.94789095,0.00032876,2]
[313109573,1706757040675,-550.58502391,0.00032876,2]
[313109574,1706757040684,-514.39109038,0.00032876,2]
[313109575,1706757040693,-575.68703796,0.00032876,2]
[313109577,1706757040702,-618.45211522,0.00032876,2]
[313109579,1706757040711,-531.79317475,0.00032876,2]
[313109581,1706757040720,-522.87681317,0.00032876,2]
[313109583,1706757040729,-512.97307112,0.00032876,2]
[313109585,1706757040738,-1000.0,0.00032876,7]
[313109587,1706757040747,-513.12044176,0.00032876,2]
[313109589,1706757040756,-523.04452817,0.00032876,2]
[313109591,1706757040765,-554.41622797,0.00032876,2]
[313109593,1706757040774,-507.2816605,0.00032876,2]
[313109595,1706757040783,-520.74401539,0.00032876,2]
[313109596,1706757040793,-538.60583617,0.00032876,2]
[313109599,1706757040802,-609.87096555,0.00032876,2]
[313109600,1706757040812,-532.90402176,0.00032876,2]
[313109603,1706757040821,-483.43509994,0.00032876,2]
[313109604,1706757040831,-586.31195677,0.00032876,2]
[313109607,1706757040840,-523.04007345,0.00032876,2]
[313109609,1706757040850,-587.58495478,0.00032876,2]
[313109611,1706757040860,-500.0,0.00032876,2]
[313109613,1706757040868,-505.74858786,0.00032876,2]
[313109615,1706757040877,-518.71654313,0.00032876,2]
[313109617,1706757040886,-500.0,0.00032876,2]
[313109619,1706757040895,-586.94543174,0.00032876,2]
[313109621,1706757040905,-522.44050918,0.00032876,2]
[313109622,1706757040914,-519.99921061,0.00032876,2]
[313109624,1706757040922,-525.44773599,0.00032876,2]
[313109627,1706757040932,-526.83101839,0.00032876,2]
[313109629,1706757040942,-500.0,0.00032876,2]
[313109631,1706757040951,-568.7185919,0.00032876,2]
[313109632,1706757040961,-400.03286693,0.00032876,2]
[313109634,1706757040970,-474.0143717,0.00032876,2]
[313109636,1706757040979,-521.66227605,0.00032876,2]
[313109639,1706757040988,-521.56513331,0.00032876,2]
[313109641,1706757040998,-547.07461031,0.00032876,2]
[313109643,1706757041007,-569.14472357,0.00032876,2]
[313109645,1706757041016,-524.9009412,0.00032876,2]
[313109646,1706757041025,-509.59550589,0.00032876,2]
[313109649,1706757041034,-568.70297962,0.00032876,2]
[313109651,1706757041043,-602.4628144,0.00032876,2]
[313109653,1706757041053,-533.0175737,0.00032876,2]
[313109655,1706757041062,-602.08,0.00032876,2]
[313109656,1706757041072,-610.8386383,0.00032876,2]
[313109658,1706757041081,-513.66663881,0.00032876,2]
[313109660,1706757041090,-616.3111488,0.00032876,2]
[313109662,1706757041100,-544.01621874,0.00032876,2]
[313109664,1706757041109,-521.96108107,0.00032876,2]
[313109665,1706757041118,-500.0,0.00032876,2]
[313109666,1706757041127,-500.0,0.00032876,2]
[313109668,1706757041136,-500.0,0.00032876,2]
[313109669,1706757041145,-504.35004035,0.00032876,2]
[313109670,1706757041155,-556.52144209,0.00032876,2]
[313109671,1706757041164,-500.0,0.00032876,10]
[313109672,1706757041173,-513.03718244,0.00032876,2]
[313109673,1706757041181,-543.47883563,0.00032876,2]
[313109674,1706757041190,-553.0216033,0.00032876,2]
[313109675,1706757041200,-500.0,0.00032876,2]
[313109676,1706757041208,-501.43788072,0.00032876,2]
[313109677,1706757041217,-524.84733524,0.00032876,2]
[313109678,1706757041226,-507.95887125,0.00032876,2]
[313109679,1706757041235,-519.83302573,0.00032876,2]
[313109680,1706757041244,-644.64066485,0.00032876,2]
[313109681,1706757041253,-582.78,0.00032876,2]
[313109682,1706757041262,-551.95954288,0.00032876,2]
[313109683,1706757041271,-547.87049903,0.00032876,2]
[313109684,1706757041280,-500.0,0.00032876,2]
[313109685,1706757041289,-510.47161292,0.00032876,2]
[313109686,1706757041298,-542.06185033,0.00032876,2]
[313109687,1706757041307,-512.5514014,0.00032876,2]
[313109688,1706757041316,-309.48559253,0.00032876,2]
[313109689,1706757041325,-512.97955622,0.00032876,2]
[313109690,1706757041334,-228.43138764,0.00032876,2]
[313109691,1706757041343,-500.0,0.00032876,2]
[313109692,1706757041511,-560.52879056,0.00032876,2]
[313109693,1706757041522,-519.58653756,0.00032876,2]
[313109694,1706757041531,-574.9062427,0.00032876,2]
[313109695,1706757041541,-583.15829645,0.00032876,2]
[313109696,1706757041550,-553.03831461,0.00032876,2]
[313109697,1706757041559,-500.0,0.00032876,2]
[313109698,1706757041570,-300.29955013,0.00032876,2]
[313109699,1706757041579,-763.16,0.00032876,2]
[313109700,1706757041589,-549.42930093,0.00032876,2]
[313109701,1706757041598,-550.8637824,0.00032876,2]
[313109702,1706757041607,-500.0,0.00032876,2]
[313109703,1706757041616,-579.98138907,0.00032876,2]
[313109704,1706757041626,-564.98849963,0.00032876,2]
[313109705,1706757041635,-500.0,0.00032876,2]
[313109706,1706757041644,-562.37109157,0.00032876,2]
[313109707,1706757041653,-505.56209072,0.00032876,2]
[313109708,1706757041664,-625.28809982,0.00032876,2]
[313109709,1706757041673,-523.29235837,0.00032876,2]
[313109710,1706757041682,-557.61902005,0.00032876,2]
[313109711,1706757041692,-533.40958161,0.00032876,2]
[313109712,1706757041702,-500.0,0.00032876,2]
[313109713,1706757041712,-500.0,0.00032876,2]
[313109714,1706757041722,-1461.41,0.00032876,2]
[313109715,1706757041732,-500.0,0.00032876,2]
[313109716,1706757041742,-500.0,0.00032876,2]
[313109717,1706757041753,-534.03540481,0.00032876,2]
[313109718,1706757041763,-500.0,0.00032876,2]
[313109719,1706757041774,-530.39956257,0.00032876,2]
[313109720,1706757041783,-500.0,0.00032876,2]
[313109721,1706757041794,-638.86,0.00032876,2]
[313109722,1706757041804,-500.0,0.00032876,2]
[313109723,1706757041814,-539.23,0.00032876,2]
[313109724,1706757041824,-626.08,0.00032876,2]
[313109725,1706757041834,-500.0,0.00032876,2]
[313109726,1706757041844,-500.0,0.00032876,2]
[313109727,1706757041856,-500.0,0.00032876,2]
[313109728,1706757041866,-500.0,0.00032876,2]
[313109729,1706757041875,-974.69,0.00032876,2]
[313109730,1706757041885,-523.05523664,0.00032876,2]
[313109731,1706757041894,-500.0,0.00032876,2]
[313109732,1706757041904,-523.08164024,0.00032876,2]
[313109733,1706757041915,-1198.3,0.00032876,2]
[313109734,1706757041925,-500.0,0.00032876,2]
[313109735,1706757041935,-500.0,0.00032876,2]
[313109736,1706757041944,-624.29601936,0.00032876,2]
[313109737,1706757041954,-500.0,0.00032876,2]
[313109738,1706757041964,-500.0,0.00032876,2]
[313109739,1706757041973,-500.0,0.00032876,2]
[313109740,1706757041983,-500.0,0.00032876,2]
[313109741,1706757041993,-500.0,0.00032876,2]
[313109742,1706757042003,-1040.1,0.00032876,2]
[313109743,1706757042013,-519.15267544,0.00032876,2]
[313109744,1706757042023,-500.0,0.00032876,2]
[313109745,1706757042033,-507.8628672,0.00032876,2]
[313109746,1706757042042,-772.83,0.00032876,2]
[313109747,1706757042051,-500.0,0.00032876,2]
[313109748,1706757042060,-500.0,0.00032876,2]
[313109749,1706757042069,-500.0,0.00032876,2]
[313109750,1706757042078,-156.50451813,0.00032876,2]
[313109751,1706757042087,-721.98,0.00032876,2]
[313109752,1706757042096,-1367.38,0.00032876,7]
[313109753,1706757042104,-182.40772478,0.00032876,2]
[313109754,1706757042114,-150.72314595,0.00032876,2]
[313109755,1706757042123,-500.0,0.00032876,2]
[313109756,1706757042131,-500.0,0.00032876,2]
[313109757,1706757042140,-535.74362496,0.00032876,2]
[313109758,1706757042149,-500.0,0.00032876,2]
[313109759,1706757042159,-500.0,0.00032876,2]
[313109760,1706757042168,-500.0,0.00032876,2]
[313109761,1706757042179,-500.0,0.00032876,2]
[313109762,1706757042188,-500.0,0.00032876,2]
[313109763,1706757042197,-496.26189021,0.00032876,2]
[313109764,1706757042206,-500.0,0.00032876,2]
[313109765,1706757042214,-500.0,0.00032876,2]
[313109766,1706757042223,-500.0,0.00032876,2]
[313109767,1706757042232,-1038.86,0.00032876,2]
[313109768,1706757042242,-500.0,0.00032876,2]
[313109769,1706757042251,-500.0,0.00032876,2]
[313109770,1706757042260,-500.0,0.00032876,2]
[313109771,1706757042269,-500.0,0.00032876,2]
[313109772,1706757042278,-500.0,0.00032876,2]
[313109773,1706757042287,-500.0,0.00032876,2]
[313109774,1706757042296,-10000.0,0.00032876,3]
[313109775,1706757042305,-567.48855966,0.00032876,2]
[313109776,1706757042314,-500.0,0.00032876,2]
[313109777,1706757042323,-500.0,0.00032876,2]
[313109778,1706757042332,-500.0,0.00032876,2]
[313109779,1706757042341,-500.0,0.00032876,2]
[313109780,1706757042350,-500.0,0.00032876,2]
[313109781,1706757042359,-500.0,0.00032876,2]
[313109782,1706757042367,-500.0,0.00032876,20]
[313109783,1706757042376,-500.0,0.00032876,2]
[313109784,1706757042385,-500.0,0.00032876,2]
[313109785,1706757042394,-500.0,0.00032876,2]
[313109786,1706757042402,-535.03834451,0.00032876,2]
[313109787,1706757042413,-500.0,0.00032876,2]
[313109788,1706757042422,-1292.86,0.00032876,2]
[313109789,1706757042431,-500.0,0.00032876,2]
[313109790,1706757042440,-535.08176773,0.00032876,2]
[313109791,1706757042450,-500.0,0.00032876,2]
[313109792,1706757042459,-500.0,0.00032876,2]
[313109793,1706757042469,-528.75668559,0.00032876,2]
[313109794,1706757042479,-500.0,0.00032876,2]
[313109795,1706757042489,-500.0,0.00032876,2]
[313109796,1706757042499,-910.9,0.00032876,2]
[313109797,1706757042510,-500.0,0.00032876,2]
[313109798,1706757042519,-567.16,0.00032876,2]
[313109799,1706757042529,-500.0,0.00032876,2]
[313109800,1706757042538,-500.0,0.00032876,2]
[313109801,1706757042547,-500.0,0.00032876,2]
[313109802,1706757042557,-236.39493764,0.00032876,2]
[313109803,1706757042566,-570.86857171,0.00032876,2]
[313109804,1706757042576,-611.62,0.00032876,2]
[313109805,1706757042590,-611.62,0.00032876,2]
[313109806,1706757042633,-611.62,0.00032876,2]
[313109807,1706757042642,-611.62,0.00032876,2]
[313109808,1706757042651,-611.62,0.00032876,2]
[313109809,1706757042661,-611.62,0.00032876,2]
[313109810,1706757042669,-611.62,0.00032876,2]
[313109811,1706757042678,-611.62,0.00032876,2]
[313109812,1706757042687,-611.62,0.00032876,2]
[313109813,1706757042696,-500.0,0.00032876,2]
[313109814,1706757042706,-611.62,0.00032876,2]
[313109815,1706757042715,-611.62,0.00032876,2]
[313109816,1706757042724,-500.0,0.00032876,2]
[313109817,1706757042734,-210.0496212,0.00032876,2]
[313109818,1706757042743,-500.0,0.00032876,2]
[313109819,1706757042752,-500.0,0.00032876,2]
[313109820,1706757042761,-500.0,0.00032876,2]
[313109821,1706757042770,-542.37631364,0.00032876,2]
[313109822,1706757042780,-500.0,0.00032876,2]
[313109823,1706757042789,-525.26176757,0.00032876,2]
[313109824,1706757042798,-500.0,0.00032876,2]
[313109825,1706757042807,-595.54045968,0.00032876,2]
[313109826,1706757042816,-500.0,0.00032876,2]
[313109827,1706757042835,-500.0,0.00032876,2]
[313109828,1706757042846,-500.0,0.00032876,2]
[313109829,1706757042855,-370.63455534,0.00032876,2]
[313109830,1706757042864,-500.0,0.00032876,2]
[313109831,1706757042873,-500.0,0.00032876,2]
[313109832,1706757042883,-500.0,0.00032876,2]
[313109833,1706757042892,-500.0,0.00032876,2]
[313109834,1706757042902,-500.0,0.00032876,2]
[313109835,1706757042912,-500.0,0.00032876,2]
[313109836,1706757042922,-500.0,0.00032876,2]
[313109837,1706757042932,-516.1187632,0.00032876,2]
[313109838,1706757042942,-500.0,0.00032876,2]
[313109839,1706757042952,-508.98265333,0.00032876,2]
[313109840,1706757042962,-500.0,0.00032876,2]
[313109842,1706757042971,-500.0,0.00032876,2]
[313109843,1706757042981,-500.0,0.00032876,2]
[313109844,1706757042990,-228.1354618,0.00032876,2]
[313109845,1706757042999,-520.11811677,0.00032876,2]
[313109846,1706757043009,-500.0,0.00032876,2]
[313109847,1706757043019,-1582.9,0.00032876,2]
[313109848,1706757043028,-635.14175743,0.00032876,2]
[313109850,1706757043037,-500.0,0.00032876,2]
[313109851,1706757043047,-537.44654605,0.00032876,2]
[313109852,1706757043056,-500.0,0.00032876,2]
[313109853,1706757043066,-572.4669567,0.00032876,2]
[313109854,1706757043075,-500.0,0.00032876,2]
[313109855,1706757043084,-521.23,0.00032876,2]
[313109856,1706757043093,-500.0,0.00032876,2]
[313109857,1706757043103,-508.43526087,0.00032876,2]
[313109858,1706757043112,-216.58770509,0.00032876,2]
[313109859,1706757043122,-500.0,0.00032876,2]
[313109861,1706757043131,-500.0,0.00032876,2]
[313109862,1706757043140,-371.3426691,0.00032876,2]
[313109863,1706757043149,-1429.5,0.00032876,2]
[313109864,1706757043159,-525.85274583,0.00032876,2]
[313109865,1706757043169,-802.68,0.00032876,2]
[313109867,1706757043178,-500.0,0.00032876,2]
[313109869,1706757043187,-1220.59,0.00032876,2]
[313109870,1706757043196,-220.56935443,0.00032876,2]
[313109871,1706757043205,-500.0,0.00032876,2]
[313109872,1706757043214,-500.0,0.00032876,2]
[313109873,1706757043224,-1000.0,0.00032876,21]
[313109875,1706757043233,-18391.59,0.00032876,2]